{"text_format":"3","workbook":"xlsx","n_sheets":2,"sheets":["GROWTH DATA","GROWTH CHART"],"not_rendered":{"charts":1,"defined_names":1},"read":"whole","date_system":"1900"}

{"sheet":"GROWTH DATA","index":0,"n_rows":25,"n_cols":8,"rows_kept":25}
[]
[null,"Baby Growth "]
[null,"Baby's Name:","Kim"]
[]
[null,"Age","Pounds","Ounces","Weight (lb.)","Weight\nPercentile","Length (in.)","Length\nPercentile"]
[null,"At birth",7,null,{"$f":"IF(COUNT(tblData[[#This Row],[Pounds]:[Ounces]])>0,tblData[[#This Row],[Pounds]]+(tblData[[#This Row],[Ounces]]/16),NA())","v":7},40,19.5,70]
[null,"4 days",6,8,{"$f":"IF(COUNT(tblData[[#This Row],[Pounds]:[Ounces]])>0,tblData[[#This Row],[Pounds]]+(tblData[[#This Row],[Ounces]]/16),NA())","v":6.5},41,19.5,70]
[null,"7 days",6,4.8,{"$f":"IF(COUNT(tblData[[#This Row],[Pounds]:[Ounces]])>0,tblData[[#This Row],[Pounds]]+(tblData[[#This Row],[Ounces]]/16),NA())","v":6.3},42,20,71]
[null,"11 days",6,9.6,{"$f":"IF(COUNT(tblData[[#This Row],[Pounds]:[Ounces]])>0,tblData[[#This Row],[Pounds]]+(tblData[[#This Row],[Ounces]]/16),NA())","v":6.6},43,20,71]
[null,"14 days",7,null,{"$f":"IF(COUNT(tblData[[#This Row],[Pounds]:[Ounces]])>0,tblData[[#This Row],[Pounds]]+(tblData[[#This Row],[Ounces]]/16),NA())","v":7},44,20,71]
[null,"18 days",7,12,{"$f":"IF(COUNT(tblData[[#This Row],[Pounds]:[Ounces]])>0,tblData[[#This Row],[Pounds]]+(tblData[[#This Row],[Ounces]]/16),NA())","v":7.75},45,21,72]
[null,"21 days",8,8,{"$f":"IF(COUNT(tblData[[#This Row],[Pounds]:[Ounces]])>0,tblData[[#This Row],[Pounds]]+(tblData[[#This Row],[Ounces]]/16),NA())","v":8.5},46,21,72]
[null,"25 days",null,null,{"$f":"IF(COUNT(tblData[[#This Row],[Pounds]:[Ounces]])>0,tblData[[#This Row],[Pounds]]+(tblData[[#This Row],[Ounces]]/16),NA())","v":{"$error":"#N/A"}}]
[null,"28 days",null,null,{"$f":"IF(COUNT(tblData[[#This Row],[Pounds]:[Ounces]])>0,tblData[[#This Row],[Pounds]]+(tblData[[#This Row],[Ounces]]/16),NA())","v":{"$error":"#N/A"}}]
[null,"5 weeks",null,null,{"$f":"IF(COUNT(tblData[[#This Row],[Pounds]:[Ounces]])>0,tblData[[#This Row],[Pounds]]+(tblData[[#This Row],[Ounces]]/16),NA())","v":{"$error":"#N/A"}}]
[null,"6 weeks",null,null,{"$f":"IF(COUNT(tblData[[#This Row],[Pounds]:[Ounces]])>0,tblData[[#This Row],[Pounds]]+(tblData[[#This Row],[Ounces]]/16),NA())","v":{"$error":"#N/A"}}]
[null,"7 weeks",null,null,{"$f":"IF(COUNT(tblData[[#This Row],[Pounds]:[Ounces]])>0,tblData[[#This Row],[Pounds]]+(tblData[[#This Row],[Ounces]]/16),NA())","v":{"$error":"#N/A"}}]
[null,"2 months",null,null,{"$f":"IF(COUNT(tblData[[#This Row],[Pounds]:[Ounces]])>0,tblData[[#This Row],[Pounds]]+(tblData[[#This Row],[Ounces]]/16),NA())","v":{"$error":"#N/A"}}]
[null,"3 months",null,null,{"$f":"IF(COUNT(tblData[[#This Row],[Pounds]:[Ounces]])>0,tblData[[#This Row],[Pounds]]+(tblData[[#This Row],[Ounces]]/16),NA())","v":{"$error":"#N/A"}}]
[null,"6 months",null,null,{"$f":"IF(COUNT(tblData[[#This Row],[Pounds]:[Ounces]])>0,tblData[[#This Row],[Pounds]]+(tblData[[#This Row],[Ounces]]/16),NA())","v":{"$error":"#N/A"}}]
[null,"9 months",null,null,{"$f":"IF(COUNT(tblData[[#This Row],[Pounds]:[Ounces]])>0,tblData[[#This Row],[Pounds]]+(tblData[[#This Row],[Ounces]]/16),NA())","v":{"$error":"#N/A"}}]
[null,"12 months",null,null,{"$f":"IF(COUNT(tblData[[#This Row],[Pounds]:[Ounces]])>0,tblData[[#This Row],[Pounds]]+(tblData[[#This Row],[Ounces]]/16),NA())","v":{"$error":"#N/A"}}]
[null,"18 months",null,null,{"$f":"IF(COUNT(tblData[[#This Row],[Pounds]:[Ounces]])>0,tblData[[#This Row],[Pounds]]+(tblData[[#This Row],[Ounces]]/16),NA())","v":{"$error":"#N/A"}}]
[null,"24 months",null,null,{"$f":"IF(COUNT(tblData[[#This Row],[Pounds]:[Ounces]])>0,tblData[[#This Row],[Pounds]]+(tblData[[#This Row],[Ounces]]/16),NA())","v":{"$error":"#N/A"}}]
[null,"36 months",null,null,{"$f":"IF(COUNT(tblData[[#This Row],[Pounds]:[Ounces]])>0,tblData[[#This Row],[Pounds]]+(tblData[[#This Row],[Ounces]]/16),NA())","v":{"$error":"#N/A"}}]

{"sheet":"GROWTH CHART","index":1,"n_rows":2,"n_cols":2,"rows_kept":2}
[]
[null,{"$f":"'GROWTH DATA'!B2&\" Chart\"","v":"Baby Growth  Chart"}]